bitfinex/quotes_BTCUSD_20250727
["timestamp","ask_amount","ask_price","bid_price","bid_amount"]
[1753642348912,0.75353863,119160.0,119150.0,0.44090857]
[1753642349349,0.75353863,119160.0,119150.0,0.44930135]
[1753642349558,0.75353863,119160.0,119150.0,0.44090857]
[1753642349983,0.75353863,119160.0,119150.0,0.44067557]
[1753642350192,0.74514691,119160.0,119150.0,0.44067557]
[1753642350833,0.74514691,119160.0,119150.0,0.27281993]
[1753642351474,0.74514691,119160.0,119150.0,0.44067557]
[1753642352483,0.74514691,119160.0,119150.0,0.44906835]
[1753642353465,0.74514691,119160.0,119150.0,0.44067557]
[1753642353672,0.74514691,119160.0,119150.0,0.27281993]
[1753642354080,0.74514691,119160.0,119150.0,0.44067557]
[1753642355432,0.7619307,119160.0,119150.0,0.44906835]
[1753642355998,0.7619307,119160.0,119150.0,0.44067557]
[1753642358928,0.7619307,119160.0,119150.0,0.44906835]
[1753642359640,0.7619307,119160.0,119150.0,0.44067557]
[1753642360063,0.7619307,119160.0,119150.0,0.44906835]
[1753642360276,0.7619307,119160.0,119150.0,0.44067557]
[1753642360914,1.16568675,119160.0,119150.0,0.44067557]
[1753642361289,1.22145739,119160.0,119150.0,0.44067557]
[1753642361479,1.16568675,119160.0,119150.0,0.44906835]
[1753642361629,0.9978452,119160.0,119150.0,0.44906835]
[1753642362059,1.16568675,119160.0,119150.0,0.44067557]
[1753642362850,0.98945313,119160.0,119150.0,0.44906828]
[1753642363068,0.9978452,119160.0,119150.0,0.44906835]
[1753642363523,0.98945313,119160.0,119150.0,0.44906835]
[1753642363738,0.9978452,119160.0,119150.0,0.44906835]
[1753642363956,1.16568675,119160.0,119150.0,0.27281993]
[1753642364179,1.15729503,119160.0,119150.0,0.27281993]
[1753642364385,1.15729503,119160.0,119150.0,0.44067557]
[1753642365379,1.15729503,119160.0,119150.0,0.27281993]
[1753642366061,1.15729503,119160.0,119150.0,0.44906835]
[1753642368234,1.1489031,119160.0,119150.0,0.27281993]
[1753642371003,1.1489031,119160.0,119150.0,0.03425293]
[1753642371227,1.1489031,119160.0,119150.0,0.15390428]
[1753642371846,1.1479031,119160.0,119150.0,0.15390428]
[1753642373786,1.1479031,119160.0,119150.0,0.02510428]
[1753642374001,1.2766631,119160.0,119150.0,0.00042715]
[1753642374214,0.08877932,119140.0,119130.0,0.21062543]
[1753642374421,0.69506442,119140.0,119130.0,0.44099181]
[1753642374649,0.75888769,119140.0,119130.0,0.45777954]
[1753642374836,0.58262448,119140.0,119130.0,0.47650492]
[1753642374979,0.75888769,119140.0,119130.0,0.47650492]
[1753642375189,0.75888769,119140.0,119130.0,0.34774492]
[1753642375472,0.75888769,119140.0,119130.0,0.47650492]
[1753642375828,0.75988769,119140.0,119130.0,0.47650492]
[1753642376083,0.75988769,119140.0,119130.0,0.34774492]
[1753642376366,0.75988769,119140.0,119130.0,0.47650492]
[1753642376993,0.75249463,119140.0,119130.0,0.46811109]
[1753642377233,0.73570795,119140.0,119130.0,0.45132322]
[1753642377469,0.73570795,119140.0,119130.0,0.44995329]
[1753642377690,0.73570795,119140.0,119130.0,0.45834734]
[1753642378141,0.73570795,119140.0,119130.0,0.46674131]
[1753642378813,0.73570795,119140.0,119130.0,0.47513521]
[1753642379029,0.73570795,119140.0,119130.0,0.48352904]
[1753642379664,0.73570795,119140.0,119130.0,0.47513521]
[1753642380331,0.73570795,119140.0,119130.0,0.48352904]
[1753642380941,0.73570795,119140.0,119130.0,0.44995336]
[1753642381148,0.78570795,119140.0,119130.0,0.44995336]
[1753642381365,0.78570795,119140.0,119130.0,0.46674131]
[1753642381366,0.79410122,119140.0,119130.0,0.46674131]
[1753642381536,0.79410122,119140.0,119130.0,0.47513514]
[1753642382051,0.79410122,119140.0,119130.0,0.46674138]
[1753642382259,0.79410122,119140.0,119130.0,0.47513521]
[1753642382648,0.81088769,119140.0,119130.0,0.47513521]
[1753642382855,0.44747295,119140.0,119130.0,0.47513521]
[1753642383069,0.81088769,119140.0,119130.0,0.45834741]
[1753642383279,0.79410136,119140.0,119130.0,0.44155917]
[1753642383912,0.79410136,119140.0,119130.0,0.33155917]
[1753642384331,0.78570795,119140.0,119130.0,0.33156043]
[1753642385228,0.78570795,119140.0,119130.0,0.33995462]
[1753642385433,0.84147859,119140.0,119130.0,0.33156043]
[1753642385608,0.78570795,119140.0,119130.0,0.33156043]
[1753642386203,0.78570795,119140.0,119130.0,0.33995462]
[1753642386404,0.78570795,119140.0,119130.0,0.16367661]
[1753642386610,0.78570795,119140.0,119130.0,0.33156043]
[1753642387007,0.78570795,119140.0,119130.0,0.16367661]
[1753642387618,0.78570795,119140.0,119130.0,0.33156043]
[1753642387833,0.78570795,119140.0,119130.0,0.33995462]
[1753642388018,0.78570795,119140.0,119130.0,0.35674279]
[1753642388436,0.78570795,119140.0,119130.0,0.34834874]
[1753642389497,0.78570795,119140.0,119130.0,0.33156043]
[1753642389721,0.78570795,119140.0,119130.0,0.33995455]
[1753642390639,0.78570795,119140.0,119130.0,0.33995462]
[1753642391065,0.78570795,119140.0,119130.0,0.34834867]
[1753642392060,0.78570795,119140.0,119130.0,0.35674264]
[1753642392263,0.42229321,119140.0,119130.0,0.34834867]
[1753642392521,0.78570795,119140.0,119130.0,0.34834874]
[1753642393141,0.78570795,119140.0,119130.0,0.33156043]
[1753642393352,0.77731447,119140.0,119130.0,0.33156043]
[1753642393559,0.77731447,119140.0,119130.0,0.33995462]
[1753642393865,0.83308511,119140.0,119130.0,0.34834874]
[1753642394107,0.77731447,119140.0,119130.0,0.34834874]
[1753642394555,0.77731447,119140.0,119130.0,0.36513676]
[1753642394792,0.77731447,119140.0,119130.0,0.35674279]
[1753642394992,0.77731447,119140.0,119130.0,0.33995462]
[1753642395223,0.77731447,119140.0,119130.0,0.34834874]
[1753642395427,0.77731447,119140.0,119130.0,0.33995462]
[1753642396288,0.77731447,119140.0,119130.0,0.34834874]
[1753642396498,0.42229314,119140.0,119130.0,0.23637661]
[1753642396708,0.79410108,119140.0,119130.0,0.37349044]
[1753642397275,0.79410108,119140.0,119130.0,0.36509661]
[1753642397509,0.79410108,119140.0,119130.0,0.35670271]
[1753642399351,0.79410108,119140.0,119130.0,0.35670279]
[1753642400526,0.79410108,119140.0,119130.0,0.34830874]
[1753642400748,0.78570788,119140.0,119130.0,0.34830874]
[1753642401408,0.78570788,119140.0,119130.0,0.35670279]
[1753642402181,0.78570788,119140.0,119130.0,0.36509676]
[1753642402388,0.78570788,119140.0,119130.0,0.33018015]
[1753642402793,0.78570788,119140.0,119130.0,0.33857405]
[1753642404837,0.78570788,119140.0,119130.0,0.33018015]
[1753642405649,0.78570788,119140.0,119130.0,0.32178618]
[1753642406470,0.78570788,119140.0,119130.0,0.33018015]
[1753642407011,0.42229314,119140.0,119130.0,0.33857405]
[1753642407234,0.78570788,119140.0,119130.0,0.33857405]
[1753642407835,0.78570788,119140.0,119130.0,0.36357907]
[1753642408459,0.78570788,119140.0,119130.0,0.35518517]
[1753642408669,0.78570788,119140.0,119130.0,0.36440778]
[1753642409288,0.78570788,119140.0,119130.0,0.33083145]
[1753642409508,0.78570788,119140.0,119130.0,0.33922564]
[1753642409700,0.78570788,119140.0,119130.0,0.34761976]
[1753642409936,0.78570788,119140.0,119130.0,0.35601381]
[1753642410140,0.78570788,119140.0,119130.0,0.34761976]
[1753642410572,0.78570788,119140.0,119130.0,0.35601381]
[1753642411685,0.78570788,119140.0,119130.0,0.36440778]
[1753642412104,0.78570788,119140.0,119130.0,0.33922564]
[1753642412740,0.78570788,119140.0,119130.0,0.33083145]
[1753642413433,0.78570788,119140.0,119130.0,0.32160884]
[1753642413888,0.78470788,119140.0,119130.0,0.15372502]
[1753642414338,0.78370788,119140.0,119130.0,0.15372502]
[1753642414580,0.78370788,119140.0,119130.0,0.15472502]
[1753642414984,0.91242788,119140.0,119130.0,0.15472502]
[1753642415513,1.27584262,119140.0,119130.0,0.02600502]
[1753642415759,0.91242788,119140.0,119130.0,0.02600502]
[1753642418023,1.27584262,119140.0,119130.0,0.02600502]
[1753642423822,0.54901314,119140.0,119130.0,0.02600502]
[1753642424071,1.27584262,119140.0,119130.0,0.02600502]
[1753642426783,1.36031992,119140.0,119130.0,0.001]
[1753642427624,1.61031992,119140.0,119130.0,0.001]
[1753642428060,0.88349044,119140.0,119130.0,0.001]
[1753642428316,1.61031992,119140.0,119130.0,0.001]
[1753642429373,0.88349044,119140.0,119130.0,0.001]
[1753642429613,1.24690518,119140.0,119130.0,0.001]
[1753642430037,1.61031992,119140.0,119130.0,0.001]
[1753642430509,1.30920735,119130.0,119110.0,0.20208067]
[1753642430719,0.46359815,119120.0,119110.0,0.23052437]
[1753642430934,0.46359815,119120.0,119110.0,0.23189437]
[1753642431566,0.46359808,119120.0,119110.0,0.23189437]
[1753642432155,0.47199276,119120.0,119110.0,0.23189437]
[1753642432808,0.125,119120.0,119110.0,0.24164437]
[1753642432994,0.49680907,119120.0,119110.0,0.29866057]
[1753642433401,0.49680907,119120.0,119110.0,0.29780057]
[1753642433829,0.49680907,119120.0,119110.0,0.25661057]
[1753642434070,0.50520347,119120.0,119110.0,0.25661057]
[1753642434681,0.13339433,119120.0,119110.0,0.25661057]
[1753642434882,0.49680907,119120.0,119110.0,0.25661057]
[1753642435885,0.50520354,119120.0,119110.0,0.25661057]
[1753642436327,0.50520347,119120.0,119110.0,0.25661057]
[1753642436529,0.56144794,119120.0,119110.0,0.25661057]
[1753642436758,0.55305347,119120.0,119110.0,0.25661057]
[1753642437252,0.56144794,119120.0,119110.0,0.25661057]
[1753642437476,0.55305347,119120.0,119110.0,0.25661057]
[1753642438029,0.56144801,119120.0,119110.0,0.25661057]
[1753642438234,0.56144794,119120.0,119110.0,0.25661057]
[1753642438640,0.55305347,119120.0,119110.0,0.25661057]
[1753642439409,0.18124433,119120.0,119110.0,0.25661057]
[1753642439634,0.54465907,119120.0,119110.0,0.25661057]
[1753642440698,0.53626474,119120.0,119110.0,0.25661057]
[1753642440926,0.544659,119120.0,119110.0,0.25161057]
[1753642442961,0.56144787,119120.0,119110.0,0.25161057]
[1753642443189,0.56469787,119120.0,119110.0,0.25161057]
[1753642443764,0.20128306,119120.0,119110.0,0.25161057]
[1753642443983,0.55630333,119120.0,119110.0,0.25161057]
[1753642444464,0.56469787,119120.0,119110.0,0.25161057]
[1753642444668,0.5646978,119120.0,119110.0,0.25161057]
[1753642444886,0.19288859,119120.0,119110.0,0.25161057]
[1753642445106,0.55630333,119120.0,119110.0,0.25161057]
[1753642445349,0.5646978,119120.0,119110.0,0.25161057]
[1753642446559,0.5957978,119120.0,119110.0,0.25161057]
[1753642446772,0.60620241,119120.0,119110.0,0.25161057]
[1753642448130,0.23439306,119120.0,119110.0,0.25161057]
[1753642448345,0.60620234,119120.0,119110.0,0.38025057]
[1753642449050,0.58941333,119120.0,119110.0,0.38025057]
[1753642449523,0.18650426,119120.0,119110.0,0.38025057]
[1753642449742,0.17811,119120.0,119110.0,0.38025057]
[1753642451925,0.54991907,119120.0,119110.0,0.38025057]
[1753642452441,0.58311907,119120.0,119110.0,0.38025057]
[1753642452868,0.62151361,119120.0,119110.0,0.38025057]
[1753642453529,0.62151354,119120.0,119110.0,0.38025057]
[1753642453732,0.61311907,119120.0,119110.0,0.37888057]
[1753642454051,0.60472474,119120.0,119110.0,0.37888057]
[1753642454264,0.613119,119120.0,119110.0,0.37888057]
[1753642454936,0.24970426,119120.0,119110.0,0.37888057]
[1753642455923,0.24131,119120.0,119110.0,0.37888057]
[1753642456141,0.21131,119120.0,119110.0,0.37888057]
[1753642457314,0.21970426,119120.0,119110.0,0.37888057]
[1753642457516,0.21131,119120.0,119110.0,0.37888057]
[1753642457725,0.21970426,119120.0,119110.0,0.37888057]
[1753642457906,0.25140426,119120.0,119110.0,0.37888057]
[1753642458775,0.26819313,119120.0,119110.0,0.37888057]
[1753642459002,0.63160787,119120.0,119110.0,0.37888057]
[1753642459209,0.80790053,119120.0,119110.0,0.37048554]
[1753642459415,0.64839744,119120.0,119110.0,0.37888071]
[1753642459616,0.64000262,119120.0,119110.0,0.38727581]
[1753642460449,0.80790053,119120.0,119110.0,0.37048554]
[1753642460884,0.64839744,119120.0,119110.0,0.37888071]
[1753642461328,0.81629598,119120.0,119110.0,0.37888071]
[1753642461584,0.80790165,119120.0,119110.0,0.37048554]
[1753642461809,0.63160885,119120.0,119110.0,0.37888071]
[1753642462068,0.63160885,119120.0,119110.0,0.38727581]
[1753642462521,0.62321403,119120.0,119110.0,0.38727581]
[1753642462740,0.63160829,119120.0,119110.0,0.38727581]
[1753642463053,0.64000304,119120.0,119110.0,0.38727581]
[1753642463466,0.62321361,119120.0,119110.0,0.38727581]
[1753642464152,0.63160829,119120.0,119110.0,0.38727581]
[1753642464594,0.64000304,119120.0,119110.0,0.38727581]
[1753642464783,0.64839786,119120.0,119110.0,0.37888071]
[1753642466098,0.64000304,119120.0,119110.0,0.38727581]
[1753642466427,0.64839786,119120.0,119110.0,0.38727581]
[1753642466649,0.2765883,119120.0,119110.0,0.38727581]
[1753642466879,0.64000304,119120.0,119110.0,0.38727581]
[1753642467394,0.64000304,119120.0,119110.0,0.35857352]
[1753642467597,0.64839793,119120.0,119110.0,0.35017842]
[1753642467815,0.28498319,119120.0,119110.0,0.35017842]
[1753642468017,0.64000304,119120.0,119110.0,0.35857352]
[1753642468862,0.62321361,119120.0,119110.0,0.35857352]
[1753642469713,0.62321361,119120.0,119110.0,0.36768039]
[1753642470170,0.62321354,119120.0,119110.0,0.36768039]
[1753642471557,0.64000283,119120.0,119110.0,0.36768039]
[1753642471991,0.64000283,119120.0,119110.0,0.39288347]
[1753642471992,0.64000276,119120.0,119110.0,0.39288347]
[1753642472230,0.63160808,119120.0,119110.0,0.39288347]
[1753642472458,0.24301,119120.0,119110.0,0.39288347]
[1753642472681,0.61280907,119120.0,119110.0,0.39425347]
[1753642472920,0.612809,119120.0,119110.0,0.39425347]
[1753642473148,0.6232834,119120.0,119110.0,0.39425347]
[1753642473826,0.614889,119120.0,119110.0,0.39425347]
[1753642473964,0.6232834,119120.0,119110.0,0.39288347]
[1753642474194,0.63167787,119120.0,119110.0,0.39288347]
[1753642475398,0.64007248,119120.0,119110.0,0.39288347]
[1753642475914,0.63167787,119120.0,119110.0,0.39288347]
[1753642476147,0.26826313,119120.0,119110.0,0.39288347]
[1753642476358,0.64846716,119120.0,119110.0,0.36769796]
[1753642476577,0.80797081,119120.0,119110.0,0.3509072]
[1753642476799,0.44455656,119120.0,119110.0,0.35930265]
[1753642477005,0.8079713,119120.0,119110.0,0.36769803]
[1753642477446,0.79118229,119120.0,119110.0,0.36770161]
[1753642477870,0.79118229,119120.0,119110.0,0.35091056]
[1753642478078,0.78278754,119120.0,119110.0,0.35930616]
[1753642478294,0.83855818,119120.0,119110.0,0.35930616]
[1753642478514,0.78278754,119120.0,119110.0,0.35930616]
[1753642478736,0.78278754,119120.0,119110.0,0.35926616]
[1753642479180,0.62328431,119120.0,119110.0,0.38445217]
[1753642479620,0.62328431,119120.0,119110.0,0.25585217]
[1753642479866,0.62328431,119120.0,119110.0,0.38445217]
[1753642480051,0.62328431,119120.0,119110.0,0.376057]
[1753642480315,0.62328431,119120.0,119110.0,0.25585224]
[1753642480551,0.62328431,119120.0,119110.0,0.38445224]
[1753642481432,0.62328431,119120.0,119110.0,0.25585224]
[1753642481676,0.24774924,119080.0,119070.0,0.19622479]
[1753642481939,0.36436684,119070.0,119060.0,0.0032]
[1753642482168,0.38596684,119070.0,119060.0,0.14209549]
[1753642482399,0.74938158,119070.0,119060.0,0.23321862]
[1753642482860,0.71150018,119070.0,119060.0,0.00461862]
[1753642483094,0.71150018,119070.0,119060.0,0.15672119]
[1753642483328,0.71150018,119070.0,119060.0,0.13184862]
[1753642483556,0.71150018,119070.0,119060.0,0.04324862]
[1753642484091,0.71150018,119070.0,119060.0,0.17184862]
[1753642484539,0.71450018,119070.0,119060.0,0.17184862]
[1753642484759,0.71450018,119070.0,119060.0,0.00324862]
[1753642485006,0.71350018,119070.0,119060.0,0.17184862]
[1753642485263,0.71350018,119070.0,119060.0,0.00324862]
[1753642485264,0.71150018,119070.0,119060.0,0.00324862]
[1753642485518,0.71150018,119070.0,119060.0,0.18076874]
[1753642485770,0.76727082,119070.0,119060.0,0.18076874]
[1753642485985,0.71989838,119070.0,119060.0,0.36554929]
[1753642486225,0.72089838,119070.0,119060.0,0.36554929]
[1753642486426,0.71250018,119070.0,119060.0,0.35715031]
[1753642486636,0.70310176,119070.0,119060.0,0.34875126]
[1753642486852,0.70310176,119070.0,119060.0,0.35715038]
[1753642487282,0.71150018,119070.0,119060.0,0.37394813]
[1753642487508,0.72829623,119070.0,119060.0,0.39944825]
[1753642487722,0.72829623,119070.0,119060.0,0.39104955]
[1753642487950,0.75099824,119070.0,119060.0,0.18076874]
[1753642488184,0.74260004,119070.0,119060.0,0.18076874]
[1753642489080,0.74260004,119070.0,119060.0,0.36554929]
[1753642489291,0.74260004,119070.0,119060.0,0.37394813]
[1753642490466,0.74260004,119070.0,119060.0,0.38234683]
[1753642490668,0.74260004,119070.0,119060.0,0.25374683]
[1753642490892,0.74260004,119070.0,119060.0,0.36554929]
[1753642491740,0.74260004,119070.0,119060.0,0.36554943]
[1753642492220,0.74260004,119070.0,119060.0,0.37394841]
[1753642492447,0.74260004,119070.0,119060.0,0.38234718]
[1753642492688,0.4191467,119070.0,119060.0,0.38234718]
[1753642492916,0.74260004,119070.0,119060.0,0.38234718]
[1753642493373,0.75939645,119070.0,119060.0,0.39074588]
[1753642493601,0.75939645,119070.0,119060.0,0.38234718]
[1753642493829,0.43594311,119070.0,119060.0,0.38234718]
[1753642494050,0.75939645,119070.0,119060.0,0.38234718]
[1753642496445,0.75939645,119070.0,119060.0,0.39074588]
[1753642497985,0.75939645,119070.0,119060.0,0.38234718]
[1753642498826,0.21168,119070.0,119060.0,0.39074581]
[1753642499065,0.22847584,119070.0,119060.0,0.39211581]
[1753642499474,0.22847584,119070.0,119060.0,0.39074581]
[1753642499708,0.23687404,119070.0,119060.0,0.39074581]
[1753642499900,0.24527232,119070.0,119060.0,0.39074581]
[1753642500328,0.22847584,119070.0,119060.0,0.39074581]
[1753642500555,0.18807785,119070.0,119060.0,0.47522311]
[1753642500775,0.22957577,119070.0,119060.0,0.47659311]
[1753642500989,0.23797383,119070.0,119060.0,0.47659311]
[1753642501175,0.27184822,119070.0,119060.0,0.47659311]
[1753642501394,0.28024628,119070.0,119060.0,0.47211311]
[1753642501608,0.27184822,119070.0,119060.0,0.34351311]
[1753642502057,0.28024628,119070.0,119060.0,0.47211311]
[1753642502263,0.27184822,119070.0,119060.0,0.47211311]
[1753642502475,0.2634503,119070.0,119060.0,0.47211311]
[1753642502894,0.25505245,119070.0,119060.0,0.47211311]
[1753642503112,0.26345023,119070.0,119060.0,0.47211311]
[1753642503317,0.27184808,119070.0,119060.0,0.47211311]
[1753642503534,0.26137023,119070.0,119060.0,0.47211311]
[1753642503750,0.38343,119090.0,119080.0,0.16795431]
[1753642503971,0.303,119090.0,119080.0,0.79265994]
[1753642504189,0.303,119090.0,119080.0,1.05034524]
[1753642504633,0.3225,119090.0,119080.0,1.05034524]
[1753642504845,0.3975,119090.0,119080.0,1.05034524]
[1753642505057,0.3975,119090.0,119080.0,1.07556224]
[1753642505267,0.443093,119090.0,119080.0,1.07556224]
[1753642505482,0.443093,119090.0,119080.0,1.02275524]
[1753642505734,0.443093,119090.0,119080.0,1.01886524]
[1753642506356,0.443093,119090.0,119080.0,0.5668119]
[1753642506821,0.443093,119090.0,119080.0,0.6954119]
[1753642507558,0.2735,119090.0,119080.0,0.7001619]
[1753642507776,0.2735,119090.0,119080.0,1.05281524]
[1753642507978,0.079,119090.0,119080.0,1.05281524]
[1753642508189,0.079,119090.0,119080.0,2.86967924]
[1753642508190,0.004,119090.0,119080.0,2.86967924]
[1753642508414,0.004,119090.0,119080.0,2.73192824]
[1753642508620,0.004,119090.0,119080.0,2.91257024]
[1753642508825,0.004,119090.0,119080.0,2.86458724]
[1753642509038,0.004,119090.0,119080.0,1.27241424]
[1753642509238,0.004,119090.0,119080.0,2.92883224]
[1753642510348,0.004,119090.0,119080.0,3.3181139]
[1753642510533,0.079,119090.0,119080.0,2.0375879]
[1753642510752,0.079,119090.0,119080.0,1.89697824]
[1753642511209,0.079,119090.0,119080.0,1.83131824]
[1753642511438,0.079,119090.0,119080.0,1.78287224]
[1753642512357,0.079,119090.0,119080.0,2.06166724]
[1753642512802,0.079,119090.0,119080.0,1.3854379]
[1753642513019,0.079,119090.0,119080.0,1.70889124]
[1753642513248,0.3485,119090.0,119080.0,1.79601224]
[1753642513704,0.3485,119090.0,119080.0,1.79515224]
[1753642514416,0.3485,119090.0,119080.0,1.97296524]
[1753642515417,0.3485,119090.0,119080.0,1.96907524]
[1753642515701,0.3485,119090.0,119080.0,1.5934229]
[1753642515949,0.3485,119090.0,119080.0,1.91687624]
[1753642516461,0.3485,119090.0,119080.0,2.22996924]
[1753642516922,0.3485,119090.0,119080.0,2.20225224]
[1753642517346,0.3485,119090.0,119080.0,1.96477624]
[1753642517761,0.3485,119090.0,119080.0,1.91451324]
[1753642518289,0.3485,119090.0,119080.0,1.88531324]
[1753642518526,0.3485,119090.0,119080.0,2.24862924]
[1753642519474,0.3485,119090.0,119080.0,1.70784824]
[1753642519649,0.3485,119090.0,119080.0,1.83640824]
[1753642520524,0.3485,119090.0,119080.0,2.25228724]
[1753642520687,0.3485,119090.0,119080.0,2.23522424]
[1753642521098,0.3485,119090.0,119080.0,2.18263524]
[1753642521297,0.39693,119090.0,119080.0,1.74360324]
[1753642521460,0.39693,119090.0,119080.0,2.10515624]
[1753642521663,0.39693,119090.0,119080.0,1.89259224]
[1753642521904,0.39693,119090.0,119080.0,2.02115224]
[1753642522518,0.39693,119090.0,119080.0,2.11237924]
[1753642522752,0.39693,119090.0,119080.0,1.86330124]
[1753642523097,0.39693,119090.0,119080.0,1.73149124]
[1753642523556,0.39693,119090.0,119080.0,1.23842424]
[1753642523754,0.39693,119090.0,119080.0,1.98843724]
[1753642524097,0.39693,119090.0,119080.0,1.23842424]
[1753642524530,0.39693,119090.0,119080.0,2.26242524]
[1753642525136,0.39693,119090.0,119080.0,2.00242524]
[1753642525598,0.39693,119090.0,119080.0,2.00286124]
[1753642526618,0.39693,119090.0,119080.0,2.27944124]
[1753642527802,0.39693,119090.0,119080.0,1.88290624]
[1753642528680,0.39693,119090.0,119080.0,1.11842424]
[1753642528824,0.39693,119090.0,119080.0,1.89200624]
[1753642530060,0.39693,119090.0,119080.0,1.82695624]
[1753642530711,0.39693,119090.0,119080.0,1.11842424]
[1753642530916,0.39693,119090.0,119080.0,1.82695624]
[1753642531683,0.39693,119090.0,119080.0,1.11842424]
[1753642531909,0.39693,119090.0,119080.0,1.84796224]
[1753642532779,0.39693,119090.0,119080.0,1.51784324]
[1753642532991,0.40017,119090.0,119080.0,1.55843824]
[1753642533819,0.40017,119090.0,119080.0,1.82499424]
[1753642534404,0.40017,119090.0,119080.0,1.81299424]
[1753642534804,0.40017,119090.0,119080.0,1.82478024]
[1753642535846,0.40017,119090.0,119080.0,1.79258024]
[1753642536643,0.40017,119090.0,119080.0,1.81801811]
[1753642536874,0.40017,119090.0,119080.0,1.46094877]
[1753642537128,0.40017,119090.0,119080.0,1.78440211]
[1753642537333,0.40017,119090.0,119080.0,1.75484911]
[1753642537884,0.40017,119090.0,119080.0,1.77525011]
[1753642538909,0.40017,119090.0,119080.0,1.64722411]
[1753642539119,0.43127,119090.0,119080.0,1.64722411]
[1753642539327,0.43334,119090.0,119080.0,1.64722411]
[1753642539953,0.43334,119090.0,119080.0,1.67691611]
[1753642540376,0.43334,119090.0,119080.0,1.64722411]
[1753642541028,0.43334,119090.0,119080.0,1.67035911]
[1753642541612,0.43334,119090.0,119080.0,1.26128377]
[1753642541754,0.43334,119090.0,119080.0,1.56159211]
[1753642542185,0.43334,119090.0,119080.0,1.80151711]
[1753642542390,0.43334,119090.0,119080.0,1.67299711]
[1753642542594,0.43334,119090.0,119080.0,1.32995811]
[1753642542812,0.43334,119090.0,119080.0,1.66011811]
[1753642543019,0.43334,119090.0,119080.0,1.79267911]
[1753642543227,0.43334,119090.0,119080.0,1.92119911]
[1753642543444,0.43234,119090.0,119080.0,1.18474211]
[1753642543674,0.43234,119090.0,119080.0,1.60540811]
[1753642543891,0.43234,119090.0,119080.0,1.60640811]
[1753642544119,0.43234,119090.0,119080.0,1.58219111]
[1753642544342,0.43234,119090.0,119080.0,1.61998711]
[1753642545034,0.43234,119090.0,119080.0,1.49146711]
[1753642545235,0.43234,119090.0,119080.0,1.96245711]
[1753642545673,0.43234,119090.0,119080.0,1.69298611]
[1753642546245,0.43234,119090.0,119080.0,2.08796811]
[1753642547236,0.43234,119090.0,119080.0,2.42227811]
[1753642547460,0.43027,119090.0,119080.0,2.42227811]
[1753642548137,0.2725,119090.0,119080.0,2.87691047]
[1753642548345,1e-08,119090.0,119080.0,4.80753277]
[1753642549255,1e-08,119090.0,119080.0,6.85436777]
[1753642549696,1e-08,119090.0,119080.0,6.48749577]
[1753642549914,1e-08,119090.0,119080.0,6.47153277]
[1753642550140,1e-08,119090.0,119080.0,6.43952777]
[1753642550368,1e-08,119090.0,119080.0,6.50819577]
[1753642550786,1e-08,119090.0,119080.0,6.50719577]
[1753642551032,1e-08,119090.0,119080.0,6.51019577]
[1753642551251,1e-08,119090.0,119080.0,1.85736777]
[1753642551468,1e-08,119090.0,119080.0,6.50456777]
[1753642551861,1e-08,119090.0,119080.0,6.45875377]
[1753642552339,1e-08,119090.0,119080.0,6.45907077]
[1753642552554,1e-08,119090.0,119080.0,6.20695077]
[1753642553443,1e-08,119090.0,119080.0,5.83183677]
[1753642554350,1e-08,119090.0,119080.0,6.85736777]
[1753642556883,1e-08,119090.0,119080.0,6.70373077]
[1753642557576,1e-08,119090.0,119080.0,6.85736777]
[1753642558974,1e-08,119090.0,119080.0,1.85736777]
[1753642559183,1e-08,119090.0,119080.0,6.85736777]
[1753642559943,1e-08,119090.0,119080.0,6.85536777]
[1753642560171,1e-08,119090.0,119080.0,6.85236777]
[1753642560353,1e-08,119090.0,119080.0,5.62130477]
[1753642560561,1e-08,119090.0,119080.0,5.56490077]
[1753642561021,1e-08,119090.0,119080.0,5.56269077]
[1753642561420,1e-08,119090.0,119080.0,6.76491777]
[1753642561655,1e-08,119090.0,119080.0,6.14904177]
[1753642561865,1e-08,119090.0,119080.0,3.96868177]
[1753642562440,1e-08,119090.0,119080.0,4.79771577]
[1753642563454,1e-08,119090.0,119080.0,4.82705777]
[1753642563664,1e-08,119090.0,119080.0,4.79925777]
[1753642563880,1e-08,119090.0,119080.0,4.73581677]
[1753642564301,1e-08,119090.0,119080.0,4.72367577]
[1753642564531,1e-08,119090.0,119080.0,4.79210877]
[1753642565450,0.22307042,119100.0,119090.0,2.9779654]
[1753642565657,0.15013042,119100.0,119090.0,3.61546804]
[1753642565865,0.22513042,119100.0,119090.0,3.43433804]
[1753642566076,0.22513042,119100.0,119090.0,3.11617104]
[1753642566289,0.22513042,119100.0,119090.0,3.00701404]
[1753642566495,0.22513042,119100.0,119090.0,3.06343645]
[1753642566703,0.22513042,119100.0,119090.0,3.46172845]
[1753642567123,0.22513042,119100.0,119090.0,3.42268345]
[1753642567768,0.22513042,119100.0,119090.0,3.42432145]
[1753642567982,0.15013042,119100.0,119090.0,3.42432145]
[1753642568184,0.08248,119100.0,119090.0,3.42432145]
[1753642568412,0.08248,119100.0,119090.0,3.42532145]
[1753642568625,0.08248,119100.0,119090.0,3.42669145]
[1753642568842,0.08248,119100.0,119090.0,4.37547445]
[1753642569100,0.08248,119100.0,119090.0,4.34932245]
[1753642569787,0.08248,119100.0,119090.0,4.43582345]
[1753642570235,0.08248,119100.0,119090.0,4.40298945]
[1753642570504,0.08248,119100.0,119090.0,4.29143945]
[1753642570955,0.08248,119100.0,119090.0,4.35987645]
[1753642571443,0.08248,119100.0,119090.0,4.32787945]
[1753642571695,0.15748,119100.0,119090.0,3.57232204]
[1753642571918,0.15748,119100.0,119090.0,3.60211104]
[1753642572870,0.08248,119100.0,119090.0,3.65311104]
[1753642573087,0.15748,119100.0,119090.0,3.65311104]
[1753642573718,0.08248,119100.0,119090.0,3.65311104]
[1753642573891,0.15748,119100.0,119090.0,4.13962304]
[1753642574425,0.15748,119100.0,119090.0,4.09006404]
[1753642574861,0.15748,119100.0,119090.0,1.27489004]
[1753642575080,0.15748,119100.0,119090.0,4.11949804]
[1753642575954,0.15748,119100.0,119090.0,4.10115204]
[1753642576163,0.15748,119100.0,119090.0,4.07171804]
[1753642576427,0.08248,119100.0,119090.0,4.07171804]
[1753642576655,0.15748,119100.0,119090.0,4.07171804]
[1753642576877,0.15748,119100.0,119090.0,4.11177289]
[1753642577099,0.15748,119100.0,119090.0,4.12204889]
[1753642577760,0.08248,119100.0,119090.0,4.06927689]
[1753642577953,0.08248,119100.0,119090.0,4.40615289]
[1753642578530,0.15748,119100.0,119090.0,4.11236389]
[1753642578924,0.15748,119100.0,119090.0,1.31494489]
[1753642579135,0.15748,119100.0,119090.0,3.65069589]
[1753642579345,0.08248,119100.0,119090.0,3.65069589]
[1753642579976,0.08248,119100.0,119090.0,1.31494489]
[1753642580202,0.08248,119100.0,119090.0,4.19131889]